Cogmind - Beta 14 @@@ ROGUE MODE // 2025.05.02 @ 17:55:40 Player: Quartz Result: Destroyed by G-34 Mercenary with Small Laser Performance ------------- Evolutions (0) 0 Regions Visited (1) 200 Robots Destroyed (18) 90 Value Destroyed (384) 384 Prototype IDs (2) 40 Alien Tech Used (0) 0 Bonus (0) 0 TOTAL SCORE: 714 Bonus ------- None Cogmind --------- Core Integrity 0/250 Matter 292/300 Energy 83/100 System Corruption 0% Temperature Cool (57) Movement Core (400) Ox7 Location -10/Materials Parts ------- > --- POWER (1) -------- (None) > --- PROPULSION (2) --- (None) > --- UTILITY (2) ------ Large Storage Unit > --- WEAPON (2) ------- Beam Cannon > --- INVENTORY (15) --- Ion Engine Large Matter Pod (0) Light Armor Plating Light Armor Plating Peak State ------------ > --- POWER ------------ Light Ion Engine > --- PROPULSION ------- Light Treads Light Treads > --- UTILITY ---------- Small Storage Unit Large Storage Unit > --- WEAPON ----------- Assault Rifle Assault Rifle > --- INVENTORY -------- Ion Engine Medium Laser [Rating: 7] Favorites ----------- Power Light Ion Engine Engine Light Ion Engine Propulsion Light Treads Treads Light Treads Utility Large Storage Unit Storage Large Storage Unit Weapon Assault Rifle Energy Gun Medium Laser Energy Cannon Beam Cannon Ballistic Gun Assault Rifle Build | -11 -10 ------- Run | Yrd Mat Slots Evolved . | . . Power . | . . Propulsion . | . . Utility . | . . Weapon . | . . Parts Attached 9 | 6 3 Power 1 | 1 . Engine 1 | 1 . Core . | . . Reactor . | . . Propulsion 2 | 2 . Treads 2 | 2 . Leg . | . . Wheel . | . . Hover . | . . Flight . | . . Utility 2 | 1 1 Device . | . . Storage 2 | 1 1 Processor . | . . Hackware . | . . Protection . | . . Artifact . | . . Weapon 4 | 2 2 Energy Gun 1 | . 1 Energy Cannon 1 | . 1 Ballistic Gun 2 | 2 . Ballistic Cannon . | . . Launcher . | . . Special Weapon . | . . Impact Weapon . | . . Slashing Weapon . | . . Piercing Weapon . | . . Special Melee Weapon . | . . Unidentified Prototypes . | . . Parts Lost 6 | . 6 Power 1 | . 1 Propulsion 2 | . 2 Utility . | . . Weapon 3 | . 3 Highest Loss Streak 2 | . 2 To Critical Strikes . | . . Average Slot Usage (%) 65 | . 65 Engine 8 | . 8 Treads 21 | . 21 Storage 14 | . 14 Energy Gun 4 | . 4 Ballistic Gun 16 | . 16 Peak Build Rating 7 | 6 7 Average Rating 4 | 4 4 On Entrance 3 | . 6 Naked Turns . | . . Heaviest Build 27 | 12 27 Greatest Support 40 | 40 40 Greatest Overweight (x) 7 | 1 7 Average Overweight (x) . | . . Largest Inventory Capacity 15 | 8 15 Average Capacity 13 | 7 14 Most Carried 5 | 2 5 Average Carried 2 | 1 3 Final Capacity 15 | 8 15 Final Carried 4 | 2 4 Class Distribution -------------------- 100% | Mutant Dominant Class ---------------- Mutant | -10/Materials Resources | -11 -10 ----------- Run | Yrd Mat Matter Collected 558 | 272 286 Remotely . | . . Salvage Created 776 | 88 688 Parts 36 | 2 34 Haulers Intercepted 1 | . 1 Recyclers Shooed 4 | . 4 Parts Field Recycled . | . . Retrieved Matter . | . . Parts Self-Destructed . | . . Prevented . | . . Kills | -11 -10 ------- Run | Yrd Mat Combat Hostiles Destroyed 13 | . 13 Guns 12 | . 12 Cannons 1 | . 1 Classes Destroyed 4 | 1 3 Hauler 1 | . 1 Recycler 4 | 1 3 Swarmer 5 | . 5 Grunt 8 | . 8 Best Kill Streak 5 | 1 5 Combat Bots Only 4 | . 4 Max Kills in Single Turn 1 | 1 1 Gunslinging . | . . Exploded . | . . Melee . | . . Uniques/NPCs Destroyed . | . . Combat | -11 -10 -------- Run | Yrd Mat Hostile Shots Fired 148 | . 148 Missed 49 | . 49 Damage Taken 1010 | . 1010 Core 251 | . 251 Absorbed by Shields . | . . Core Remaining (%) 100 | 100 . Volleys Fired 80 | 2 78 Largest 2 | 2 2 Hottest 110 | 40 110 Shots Fired 124 | 4 120 Gun 116 | 4 112 Cannon 8 | . 8 Launcher . | . . Special . | . . Kinetic 102 | 4 98 Thermal 22 | . 22 Explosive . | . . Electromagnetic . | . . Robot Hit Streak 13 | 3 13 Robot Miss Streak 4 | . 4 Penetration Max . | . . Secondary Targets 2 | . 2 Max Gunslinging Chain 1 | . 1 Shots Hit Robots 87 | 3 84 Core Hits 33 | 2 31 Critical Kills . | . . Critical Parts Destroyed . | . . Critical Strikes . | . . Melee Attacks . | . . Impact . | . . Slashing . | . . Piercing . | . . Sneak Attacks . | . . Combat Hostiles . | . . Follow-up Attacks . | . . Damage Inflicted 1045 | 39 1006 Guns 957 | 39 918 Cannons 88 | . 88 Explosions . | . . Melee . | . . Ramming . | . . Kinetic 848 | 39 809 Thermal 197 | . 197 Explosive . | . . Electromagnetic . | . . Impact . | . . Slashing . | . . Piercing . | . . Highest Corruption . | . . Average Corruption . | . . Corruption Purged . | . . Corruption Blocked . | . . Overload Shots . | . . Overflow Damage . | . . Projectiles . | . . Explosions . | . . Melee . | . . Knockbacks . | . . Impact . | . . Kinetic . | . . Secondary . | . . Self-Inflicted Damage . | . . Shots . | . . Rammed . | . . Targets Rammed . | . . Kicked . | . . Crushed . | . . Highest Temperature 113 | . 113 Average Temperature 35 | . 35 Received Heat Transfer 387 | . 387 Siege Activations . | . . Robots Corrupted . | . . Combat Hostiles . | . . Parts Fried . | . . Impact Corruptions . | . . Robots Melted . | . . Combat Hostiles . | . . Parts Melted 2 | . 2 Heat Transferred 518 | . 518 Parts Sabotaged . | . . Parts Stolen . | . . Parts Stripped . | . . Power Chain Reactions . | . . Alert | -11 -10 ------- Run | Yrd Mat Peak Influence 177 | 5 177 Initial 3 | . 3 Average 55 | 3 63 Maximum Alert Level . | . . Low Security (%) 100 | 100 100 Level 1 . | . . Level 2 . | . . Level 3 . | . . Level 4 . | . . Level 5 . | . . High Security . | . . Max Security . | . . Squads Dispatched 3 | . 3 Investigation 1 | . 1 Extermination . | . . Reinforcement 2 | . 2 Assault . | . . Garrison . | . . Intercept . | . . Searches Triggered . | . . Construction Impeded . | . . Haulers Reinforced . | . . Active Scanning Responses . | . . Cargo Convoy Interrupts . | . . Stealth | -11 -10 --------- Run | Yrd Mat Distress Signals 1 | . 1 Communications Jammed . | . . Distress Signals . | . . Times Spotted 22 | . 22 Peak Tracking Total 7 | . 7 Tactical Retreats . | . . Traps | -11 -10 ------- Run | Yrd Mat Traps Triggered . | . . Indirectly . | . . Trap Hack Attempts . | . . Triggered . | . . Disarmed . | . . Reprogrammed . | . . Reused . | . . Traps Extracted . | . . Installed . | . . Triggered . | . . Machines | -11 -10 ---------- Run | Yrd Mat Machines Disabled 1 | . 1 Max in Single Turn 1 | . 1 Machines Repaired . | . . Machines Dismantled . | . . Machines Sabotaged . | . . Overloaded Fab Kills . | . . Hacking | -11 -10 --------- Run | Yrd Mat Machines Accessed 3 | . 3 Terminals 3 | . 3 Fabricators . | . . Repair Stations . | . . Recycling Units . | . . Scanalyzers . | . . Garrison Access . | . . Total Hacks 12 | . 12 Successful 6 | . 6 Failed 6 | . 6 Catastrophic 3 | . 3 Database Lockouts . | . . Manual . | . . Terminals 12 | . 12 Fabricators . | . . Repair Stations . | . . Recycling Units . | . . Scanalyzers . | . . Garrison Access . | . . Terminal Hacks 6 | . 6 Record 3 | . 3 Robot Analysis 1 | . 1 Prototype ID Bank 1 | . 1 Unreport Threat 1 | . 1 Fabricator Hacks . | . . Repair Station Hacks . | . . Recycling Unit Hacks . | . . Scanalyzer . | . . Garrison Access Hacks . | . . Unauthorized Hacks . | . . Terminals . | . . Fabricators . | . . Repair Stations . | . . Recycling Units . | . . Scanalyzers . | . . Garrison Access . | . . Data Cores Recovered . | . . Used . | . . Hacking Detections 1 | . 1 Full Trace Events 1 | . 1 Feedback Events . | . . Feedback Blocked . | . . Robot Schematics Acquired . | . . Robots Built . | . . Authchips . | . . Time . | . . Total Robot Build Rating . | . . Part Schematics Acquired . | . . Parts Built . | . . Authchips . | . . Time . | . . Total Part Build Rating . | . . Parts Repaired . | . . Time . | . . Parts Recycled . | . . Recycled Matter . | . . Retrieved Matter . | . . Retrieved Components . | . . Parts Scanalyzed . | . . Part Schematics Acquired . | . . Parts Damaged . | . . Bothacking | -11 -10 ------------ Run | Yrd Mat Used RIF Installer . | . . Robots Hacked . | . . Non-combat . | . . Combat . | . . Robot Hacks Applied . | . . Relay Couplers Released . | . . Fabnet Peak Effective % . | . . Robots Rewired . | . . Allies Hacked . | . . Hacks Repelled . | . . Allies | -11 -10 -------- Run | Yrd Mat Total Allies . | . . Largest Group . | . . Highest-Rated Group . | . . Highest-Rated Ally . | . . Total Orders . | . . Ally Attacks . | . . Total Damage . | . . Kills . | . . Allies Corrupted . | . . Allies Melted . | . . Intel | -11 -10 ------- Run | Yrd Mat Robot Analysis Total 1 | . 1 Derelict Logs Recovered . | . . Drone Launches . | . . Drone Recoveries . | . . Exploration | -11 -10 ------------- Run | Yrd Mat Turns Passed 932 | 121 811 Spaces Moved 352 | 63 289 Core 24 | 16 8 Treads 328 | 47 281 Legs . | . . Wheels . | . . Hover . | . . Flight . | . . Fastest Speed 50 | 50 160 Average Speed 184 | 136 195 Slowest Speed 400 | 160 400 Overloaded Moves . | . . Propulsion Burnouts . | . . Robots Hopped . | . . Cave-ins Triggered . | . . Exploration Rate (%) 22 | 4 40 Regions Visited 1 Branch Regions . Pre-discovered Areas . | . . Known Exits Taken . | . . Unknown Exits Taken 1 | 1 . Scrap Searched . | . . Spaces Dug . | . . Terrain Destroyed . | . . Melee . | . . Projectile . | . . AOE . | . . Terrain Rammed . | . . Walls Destroyed . | . . Machines Disabled . | . . Actions | -11 -10 --------- Run | Yrd Mat Total 510 | 94 416 Wait 54 | 16 38 Move 351 | 62 289 Hop . | . . Pick Up 14 | 8 6 Fast Attach . | . . Attach 9 | 6 3 Detach . | . . Swap . | . . Drop 2 | . 2 Fire 80 | 2 78 Melee . | . . Ram . | . . Kick . | . . Crush . | . . Escape Stasis . | . . Rewire . | . . Trap . | . . Miscellaneous . | . . Route ------- -11/Scrapyard -10/Materials (discovered 1 exit: [*Min]) History --------- Turn | Location | Event 6 | -11/Scrapyard | Discovered new exit (range 15) 122 | -11/Scrapyard | Entered Materials 302 | -10/Materials | Build established: Mutant 687 | -10/Materials | Discovered new exit (range 12) 876 | -10/Materials | Core integrity fell below 50% 924 | -10/Materials | Core integrity fell below 20% 933 | -10/Materials | Destroyed by G-34 Mercenary with Small Laser Last Messages --------------- 00868_ W-16 Scout sends out distress signal. 00868_ S-10 Pest destroyed. 00870_ K-01 Serf cleans the Terminal. 00872_ R-06 Scavenger collects Lgt. Armor Plating. 00873_ K-01 Serf collects debris. 00876_ Acquired 46 matter. 00876_ R-06 Scavenger collects Com. Wheel. 00877_ K-01 Serf cleans the Terminal. 00880_ R-06 Scavenger collects Lgt. Assault Rifle. 00882_ Lgt. Treads destroyed. 00883_ R-06 Scavenger collects Flight Unit. 00913_ Med. Laser destroyed. 00917_ Heat Sink melted. 00917_ G-34 Mercenary destroyed. 00920_ K-01 Serf collects debris. 00923_ Terminal disabled. 00927_ M-13 Machinist repairs Heat Sink. 00927_ K-01 Serf collects debris. Map ----- +----------------------------------------------------+ | ??????????????????????????? ??????????# """ # | | ??????????????????????????###/###?#+###?# # | | ?????????????######+####### ### #T#######+#### | | ???????????? =%[ = ! ! | | ???????????? T !==* =% *%### | | ???????????? % !%=! * ! = [=#?? | | ???????????????####+##+#### ##+#########+####? | | ??????????????????????????## ##[[* ==#?# [ #? | | ???????????????????????????# ## [%### #? | | ???????????????????????????# ## =+ + *#? | | ???????????????????????????# ## ### #? | | ????????????????????????#### ## #?#!! #? | | ????????????????????????#" # #?#! #? | | ????????????????????????#"" ########?########? | | ????????????????????????#|| #????????????????? | | ????????????????????????#"" < #????????????????? | | ????????????????????????#!! #????????????????? | | ????????????????????????#"" #????????????????? | | ????????????????????????#" #????????????????? | | ????????????????????????#### ###############???? | | ???????# ######+############ # #???? | | ???????# ! + #???? | | ??? + ! # #???# | | ???????# = m%s # = #???# | | ???????### ####### ######g###### #???# | | ?????????????????#=#?# @* # #???? | | ?????????????????#%#?# ""k ###############???? | | ?????????????????#*#?# "T" #???????????????### | | ?????????????????#%"?# = #???????????????# | | ?????????????????#[T?###########???????????????# | | ?????????????????#="???????????????????????????### | | ?????????????????? #?????????????????????????????? | | ?????????????????? ??????????????????????????????? | | ?????????????????? ??????????????????????????????? | | ?????????????????? ??????????????????????????????? | | ?????????????????? ??????????????????????????????? | | ?????????????????? ??????????????????????????????? | | ?????????????????? ??????????????????????????????? | | ?????????????????????????????????????????????????? | | ?????????????????????????????????????????????????? | | ?????????????????????????????????????????????????? | | ?????????????????????????????????????????????????? | | ?????????????????????????????????????????????????? | | ?????????????????????????????????????????????????? | | ?????????????????????????????????????????????????? | | ?????????????????????????????????????????????????? | | ?????????????????????????????????????????????????? | | ?????????????????????????????????????????????????? | | ?????????????????????????????????????????????????? | | ?????????????????????????????????????????????????? | +----------------------------------------------------+ Best States ------------- Heat Dissipation 25 Energy Generation 10 Energy Capacity 125 Matter Stores 300 Matter Capacity 300 Sight Range 16 Terrain Scan Density 10 Evasion (%) 50 Recoil Reduction 2 Item Schematics ----------------- None Robot Schematics ------------------ None Fabricated ------------ Nothing Alien Tech Used ----------------- None Achievements -------------- Everything Is Under Control Challenges ------------ None Game ------ Seed BombardmentMicroReplicator Manual? 0 Play Time 00:08:45 Cumulative 3.6 hours Start 2025.05.02 @ 17:49:17 End 2025.05.02 @ 17:55:40 Sessions 1 Manual Loads 0 Difficulty Rogue Special Mode None Game No. 8 Rogue 8 Adventurer 0 Explorer 0 Win Type - Total 0 Types 0/0/0/0/0/0/0/0/0 Lore% 3 Gallery% 8 Achievement% 9 Wizard Run 0 Options --------- Layout 1 ASCII 0 Keyboard 0 Movement Mouse Keybinds 0 Fullscreen 1 Font 24/Smallcaps Map View 50x35 Zoom Use 0% Tactical HUD 1 Map Filters NONE Filters NONE Steam 1 RUN: 31ff032b-7287-48da-8b26-7eee582cd74e